bitfinex/quotes_ETHUSD_20241013
["timestamp","ask_amount","ask_price","bid_price","bid_amount"]
[1728863294478,4.0449,2472.3,2471.8,4.04561]
[1728863294694,9.57615062,2472.4,2472.1,0.09707877]
[1728863294902,9.57615062,2472.4,2471.9,4.04543]
[1728863295097,9.57615062,2472.4,2472.2,0.09707877]
[1728863295280,5.53135062,2472.4,2471.9,4.04543]
[1728863295459,5.53135062,2472.4,2472.3,0.09707877]
[1728863295660,5.53135062,2472.4,2471.9,4.4503303]
[1728863295893,5.53135062,2472.4,2472.3,0.09707877]
[1728863296087,5.53135062,2472.4,2471.9,4.4503303]
[1728863296289,5.53135062,2472.4,2472.3,0.09707877]
[1728863296595,5.53135062,2472.4,2471.9,4.4503303]
[1728863296801,5.53135062,2472.4,2472.3,0.09707877]
[1728863297297,5.53135062,2472.4,2471.9,4.4503303]
[1728863297479,5.53135062,2472.4,2472.3,0.09707877]
[1728863297685,5.53135062,2472.4,2471.9,4.4503303]
[1728863297887,5.53135062,2472.4,2472.3,0.09707877]
[1728863298199,5.53135062,2472.4,2471.9,4.4503303]
[1728863298398,5.53135062,2472.4,2472.3,0.09707877]
[1728863298608,10.50156568,2472.4,2472.3,0.09707877]
[1728863298759,4.04485,2472.3,2471.8,4.04552]
[1728863298959,5.53155062,2472.3,2471.8,4.04552]
[1728863299185,5.53155062,2472.3,2471.9,0.09707877]
[1728863299386,8.38055,2472.4,2471.9,0.09707877]
[1728863299387,5.82260062,2472.4,2471.9,4.14251877]
[1728863299582,13.91206062,2472.4,2471.9,5.20704232]
[1728863299797,0.07040344,2472.3,2471.9,5.20704232]
[1728863300101,4.11522344,2472.3,2471.9,5.20704232]
[1728863300597,4.04482,2472.3,2471.9,1.16160232]
[1728863300808,5.27260062,2472.4,2471.9,5.20706232]
[1728863301314,5.27260062,2472.4,2472.0,4.04529]
[1728863301755,4.83062,2472.4,2472.0,5.16051021]
[1728863301959,4.83062,2472.4,2472.1,0.09707877]
[1728863302413,4.04438,2472.6,2472.1,4.14214877]
[1728863302714,4.0445,2472.5,2472.1,4.14214877]
[1728863303066,9.57549062,2472.6,2472.1,4.14214877]
[1728863303267,9.57549062,2472.6,2472.2,0.73014644]
[1728863303601,4.04438,2472.6,2472.2,4.77511644]
[1728863303774,4.04438,2472.6,2472.3,0.09707877]
[1728863304300,4.04449,2472.5,2472.3,0.09707877]
[1728863305013,4.04438,2472.6,2472.3,0.09707877]
[1728863305213,0.8149,2472.7,2472.3,5.18218935]
[1728863305520,0.8149,2472.7,2472.3,5.73957725]
[1728863306431,0.8149,2472.7,2472.3,5.65868935]
[1728863306720,6.34585062,2472.7,2472.3,1.61397935]
[1728863307096,6.34585062,2472.7,2472.3,1.13747935]
[1728863307313,6.34585062,2472.7,2472.3,0.09707877]
[1728863308116,1.48670062,2472.6,2472.3,0.09707877]
[1728863308319,1.48670062,2472.4,2472.1,4.52162]
[1728863308628,6.29018062,2472.4,2472.2,0.09720831]
[1728863308781,5.53151062,2472.3,2472.2,0.09720831]
[1728863309187,4.04508,2472.2,2471.7,4.52214]
[1728863309383,0.7518,2472.0,2471.8,0.60088406]
[1728863309620,0.7518,2472.0,2471.6,4.04596]
[1728863309820,0.7518,2472.0,2471.9,0.09665014]
[1728863309978,6.28380062,2472.0,2471.9,0.09665014]
[1728863310183,4.04548,2471.9,2471.4,4.04617]
[1728863310514,1.48670062,2471.6,2471.5,0.09665014]
[1728863310822,5.53250062,2471.7,2471.3,4.52285]
[1728863310988,5.53250062,2471.7,2471.5,0.09665014]
[1728863311186,5.53250062,2471.7,2471.3,0.4765]
[1728863311530,5.53250062,2471.7,2471.4,0.09665014]
[1728863312325,4.0458,2471.7,2471.4,0.09665014]
[1728863312629,5.53250062,2471.7,2471.4,0.09665014]
[1728863316115,0.8218,2471.6,2471.4,0.09665014]
[1728863317585,0.8218,2471.6,2471.2,4.0465]
[1728863317787,0.8218,2471.6,2471.5,0.09726391]
[1728863318030,0.8218,2471.6,2471.2,8.69401006]
[1728863318227,0.8218,2471.6,2471.5,0.09726391]
[1728863318521,0.8218,2471.6,2471.2,8.69401006]
[1728863318694,0.8218,2471.6,2471.5,0.09726391]
[1728863318904,0.8218,2471.6,2471.2,8.69401006]
[1728863319104,0.8218,2471.6,2471.5,0.09726391]
[1728863319398,0.8218,2471.6,2471.3,4.04643]
[1728863319605,0.8218,2471.6,2471.5,0.09726391]
[1728863319805,0.8218,2471.6,2471.2,4.64747006]
[1728863320005,0.8218,2471.6,2471.3,4.04644]
[1728863320211,0.8218,2471.6,2471.3,4.14424958]
[1728863322125,0.8218,2471.6,2471.3,4.14422958]
[1728863323476,0.8218,2471.6,2471.3,5.21971961]
[1728863324701,0.8218,2471.6,2471.4,4.04627]
[1728863325200,0.8218,2471.6,2471.5,0.09780958]
[1728863328938,0.8218,2471.6,2471.3,4.04641]
[1728863329124,0.8218,2471.6,2471.5,0.09780958]
[1728863329333,0.8218,2471.6,2471.3,4.04641]
[1728863329645,0.8218,2471.6,2471.5,0.09780958]
[1728863329811,0.8218,2471.6,2471.3,4.04641]
[1728863330009,0.8218,2471.6,2471.5,0.09780958]
[1728863330222,0.8218,2471.6,2471.4,0.0966897]
[1728863330413,0.8218,2471.6,2471.2,8.69401006]
[1728863330913,0.8218,2471.6,2471.3,0.0966897]
[1728863332012,0.8218,2471.6,2471.3,4.1430497]
[1728863333118,0.8218,2471.6,2471.4,4.04626]
[1728863333436,0.8218,2471.6,2471.4,4.14243955]
[1728863333747,5.53241062,2471.8,2471.4,4.14243955]
[1728863334044,6.32701062,2471.8,2471.4,4.14243955]
[1728863334238,0.7946,2471.8,2471.6,4.04588]
[1728863334457,0.0704175,2472.0,2471.7,4.04571]
[1728863334941,1.48670062,2472.0,2471.7,4.1419032]
[1728863336339,9.32644062,2472.1,2471.7,4.1419032]
[1728863336917,1.48670062,2472.0,2471.7,4.1419032]
[1728863339169,1.48670062,2472.0,2471.7,0.0961932]
[1728863339355,1.48670062,2471.9,2471.7,0.0961932]
[1728863339559,1.48670062,2472.0,2471.7,0.0961932]
[1728863341498,1.48670062,2472.0,2471.7,4.1419832]
[1728863341661,3.7946,2472.1,2471.7,4.1419832]
[1728863342145,0.7946,2472.1,2471.8,4.04562]
[1728863342687,0.7946,2472.1,2471.9,0.0961932]
[1728863342995,1.48670062,2472.2,2471.9,0.0961932]
[1728863343212,3.0,2472.1,2471.9,0.0961932]
[1728863344209,0.7727,2472.3,2471.9,4.60346452]
[1728863344355,6.30429062,2472.3,2471.9,4.60346452]
[1728863344559,1.48670062,2472.2,2471.9,4.60346452]
[1728863344830,6.30429062,2472.3,2471.9,4.60346452]
[1728863344973,6.30429062,2472.3,2471.9,0.0961932]
[1728863345367,1.48670062,2472.2,2471.9,0.0961932]
[1728863345805,6.30429062,2472.3,2471.9,0.0961932]
[1728863349473,6.30429062,2472.3,2471.9,4.1416532]
[1728863349474,2.25940062,2472.3,2471.9,4.1416532]
[1728863349718,0.7727,2472.3,2471.9,8.94398735]
[1728863349932,0.7727,2472.3,2471.9,4.89852735]
[1728863350514,4.81752,2472.3,2471.9,4.89852735]
[1728863350713,6.30422062,2472.3,2471.9,0.0961932]
[1728863352208,4.81752,2472.3,2471.9,0.0961932]
[1728863353626,6.30422062,2472.3,2471.9,0.0961932]
[1728863353834,2.25590062,2472.0,2471.9,0.0961932]
[1728863354121,6.93131668,2472.0,2471.6,4.0459]
[1728863354325,2.25590062,2472.0,2471.6,4.0459]
[1728863354624,2.25590062,2472.0,2471.7,0.09253549]
[1728863354923,6.30122062,2472.0,2471.7,0.09253549]
[1728863355332,4.81452,2472.0,2471.7,0.09253549]
[1728863355500,6.30122062,2472.0,2471.7,0.09253549]
[1728863356832,1.48670062,2471.8,2471.7,0.09253549]
[1728863356997,5.53233062,2471.8,2471.7,0.09253549]
[1728863357344,5.53233062,2471.8,2471.7,0.09261039]
[1728863357548,5.53233062,2471.8,2471.4,5.09298514]
[1728863357854,5.53233062,2471.8,2471.5,1.96853965]
[1728863358008,5.53233062,2471.8,2471.5,0.0897685]
[1728863358450,2.52140068,2471.8,2471.3,9.13958913]
[1728863358653,5.53234062,2471.8,2471.6,0.0897685]
[1728863358817,5.53234062,2471.8,2471.3,4.89039577]
[1728863359017,5.53234062,2471.8,2471.7,0.0897685]
[1728863359254,5.53234062,2471.8,2471.3,4.04635]
[1728863359449,5.53234062,2471.8,2471.7,0.0897685]
[1728863359450,4.81634,2471.8,2471.7,0.0897685]
[1728863359752,7.26082168,2471.8,2471.7,0.0897685]
[1728863359926,7.26082168,2471.8,2471.3,1.17822172]
[1728863360129,5.53253062,2471.7,2471.4,0.08982288]
[1728863360372,0.7707,2471.4,2471.1,5.09345426]
[1728863360513,0.7707,2471.4,2471.0,1.26606865]
[1728863360514,2.25740062,2471.4,2471.2,0.82777679]
[1728863360856,2.25740062,2471.4,2471.2,0.08982288]
[1728863361211,2.25740062,2471.4,2471.0,4.04693]
[1728863361559,2.25740062,2471.4,2471.0,1.35657645]
[1728863361560,1.48670062,2471.3,2471.0,1.35657645]
[1728863361737,4.81698,2471.4,2471.1,0.08992484]
[1728863361915,6.30368062,2471.4,2471.0,1.05161269]
[1728863362112,4.81698,2471.4,2470.9,5.36753577]
[1728863362324,4.81698,2471.4,2471.0,0.82781456]
[1728863362665,0.7713,2471.7,2471.3,4.52287]
[1728863362960,2.25800062,2471.7,2471.3,4.52287]
[1728863363257,2.25800062,2471.7,2471.4,0.08992484]
[1728863364413,5.53242062,2471.8,2471.4,0.08992484]
[1728863364869,1.48670062,2471.7,2471.4,0.08992484]
[1728863365243,5.53251062,2471.7,2471.4,0.08992484]
[1728863365449,2.25410062,2471.5,2471.4,0.08992484]
[1728863365632,6.30022062,2471.5,2471.4,0.08992484]
[1728863365833,6.30022062,2471.5,2471.0,4.52336]
[1728863366034,6.30022062,2471.5,2471.4,0.08992484]
[1728863366263,6.30022062,2471.5,2471.0,4.52336]
[1728863366562,6.30022062,2471.5,2471.1,1.76870219]
[1728863366764,6.30022062,2471.5,2471.2,0.08992484]
[1728863368136,4.04629,2471.4,2471.2,0.08992484]
[1728863368381,4.04629,2471.4,2471.0,4.52336]
[1728863368594,4.04629,2471.4,2471.1,0.08992484]
[1728863372173,2.32452613,2471.5,2471.1,0.08992484]
[1728863372398,4.88395551,2471.5,2471.1,0.79242124]
[1728863372613,4.88395551,2471.5,2471.1,0.08992484]
[1728863372614,6.37065613,2471.5,2471.1,0.08992484]
[1728863373295,4.88395551,2471.5,2471.1,4.13670484]
[1728863373470,4.88395551,2471.5,2471.1,0.08992484]
[1728863373471,1.48670062,2471.4,2471.1,0.08992484]
[1728863373984,1.48670062,2471.4,2470.9,5.09751238]
[1728863373985,5.53300062,2471.4,2470.9,5.09751238]
[1728863374170,5.53300062,2471.4,2471.0,0.09023754]
[1728863376358,5.53318062,2471.3,2471.0,0.09023754]
[1728863376696,1.48670062,2471.1,2470.8,1.65348366]
[1728863376905,4.85732,2471.2,2470.8,1.65348366]
[1728863376906,6.34402062,2471.2,2471.1,0.09023754]
[1728863377195,4.85732,2471.2,2470.9,0.09023754]
[1728863377511,6.34402062,2471.2,2470.8,0.4765]
[1728863377663,6.34402062,2471.2,2471.0,0.09023754]
[1728863378089,6.34402062,2471.2,2470.8,0.4765]
[1728863378396,10.39073062,2471.2,2470.8,0.4765]
[1728863378580,6.34401062,2471.2,2470.9,0.09023754]
[1728863379359,10.39071062,2471.2,2470.9,0.09023754]
[1728863379715,6.34400062,2471.2,2470.9,0.09023754]
[1728863380499,4.04678,2471.1,2470.9,0.09023754]
[1728863382614,5.53364062,2471.0,2470.9,0.09023754]
[1728863383099,5.53364062,2471.0,2470.5,8.57177]
[1728863383308,5.53364062,2471.0,2470.9,0.0907611]
[1728863383309,4.04694,2471.0,2470.9,0.0907611]
[1728863383464,1.48670062,2471.0,2470.6,4.04757]
[1728863383663,1.48670062,2470.9,2470.6,4.1383311]
[1728863384302,1.48670062,2471.0,2470.7,4.0474]
[1728863384610,4.04678,2471.1,2470.7,4.0474]
[1728863384611,5.53348062,2471.1,2470.7,4.0474]
[1728863384763,5.53348062,2471.1,2470.8,0.0907611]
[1728863384967,1.48670062,2471.0,2470.7,4.0474]
[1728863385161,5.53348062,2471.1,2470.9,0.0907611]
[1728863385398,5.53348062,2471.1,2470.7,4.0474]
[1728863385631,5.53348062,2471.1,2471.0,0.0907611]
[1728863385911,5.53348062,2471.1,2470.7,4.0474]
[1728863386210,4.04678,2471.1,2471.0,0.0907611]
[1728863386408,4.04678,2471.1,2470.7,4.0474]
[1728863386575,4.04678,2471.1,2471.0,0.0907611]
[1728863386915,4.04678,2471.1,2470.7,4.0474]
[1728863387212,4.04678,2471.1,2471.0,0.0907611]
[1728863387383,4.04678,2471.1,2470.5,4.52424]
[1728863387590,1.48670062,2471.0,2470.6,4.04759]
[1728863388389,5.53348062,2471.1,2470.7,4.04743]
[1728863390196,1.48670062,2471.0,2470.7,4.04743]
[1728863390711,5.53348062,2471.1,2470.7,4.04743]
[1728863390877,0.07043769,2471.0,2470.7,4.04743]
[1728863393333,1.55713831,2471.0,2470.7,4.04743]
[1728863395317,0.07043769,2471.0,2470.7,8.09479]
[1728863395652,0.07043769,2471.0,2470.7,9.01594592]
[1728863395947,0.07043769,2471.0,2470.7,4.96858592]
[1728863396451,1.55713831,2471.0,2470.7,0.92123592]
[1728863396609,1.55713831,2471.0,2470.6,4.0475]
[1728863397135,1.55713831,2471.0,2470.5,5.16519924]
[1728863397136,0.7704,2470.9,2470.5,9.21288924]
[1728863397336,0.7704,2470.9,2470.5,5.16519924]
[1728863397541,6.30421062,2470.9,2470.5,4.68869924]
[1728863399270,1.48670062,2470.8,2470.5,4.04763]
[1728863399721,1.48670062,2470.8,2470.4,1.17742562]
[1728863399931,0.7639,2470.7,2470.6,0.09095153]
[1728863400170,0.7639,2470.7,2470.3,0.39975174]
[1728863400171,4.81133,2470.7,2470.3,0.39975174]
[1728863400464,1.48670062,2470.5,2470.1,5.67161138]
[1728863400631,1.48670062,2470.4,2470.2,1.87858583]
[1728863400838,1.48670062,2470.5,2470.2,0.53949307]
[1728863401038,1.48670062,2470.5,2470.2,0.41271489]
[1728863401261,5.53443062,2470.6,2470.2,0.41271489]
[1728863401437,5.53443062,2470.6,2470.2,4.46096489]
[1728863401635,5.53443062,2470.6,2470.2,4.58774483]
[1728863401960,4.04739,2470.8,2470.2,4.58774483]
[1728863401961,4.04739,2470.8,2470.4,4.04789]
[1728863402161,1.48670062,2470.7,2470.3,4.04807]
[1728863402348,0.7952,2470.6,2470.3,4.04807]
[1728863402549,2.28190062,2470.6,2470.3,4.04807]
[1728863402757,0.7952,2470.6,2470.3,8.09614]
[1728863403151,0.7952,2470.6,2470.4,4.04791]
[1728863405639,2.28190062,2470.6,2470.3,4.04807]
[1728863406941,2.28190062,2470.6,2470.3,8.09606]
[1728863407576,0.7952,2470.6,2470.3,8.09606]
[1728863408136,0.7952,2470.6,2470.3,4.04799]
[1728863408550,2.28190062,2470.6,2470.3,4.04799]
[1728863408758,2.28190062,2470.6,2470.2,4.04823]
[1728863410396,6.96250968,2470.6,2470.1,4.52477]
[1728863410687,6.96250968,2470.6,2470.1,4.17505304]
[1728863410836,6.96250968,2470.6,2470.1,8.09657]
[1728863411042,6.96250968,2470.6,2470.1,8.22335342]
[1728863411886,6.96250968,2470.6,2470.1,8.09657]
[1728863412303,1.55715435,2470.7,2470.4,4.04791]
[1728863412451,0.07045373,2470.7,2470.4,4.04791]
[1728863412652,0.07045373,2470.7,2470.3,4.52454]
[1728863412859,4.11790373,2470.7,2470.3,4.52454]
[1728863413260,5.60460435,2470.7,2470.3,4.52454]
[1728863414216,5.60460435,2470.7,2470.2,8.09633]
[1728863414417,5.60460435,2470.7,2470.2,4.04816]
[1728863414627,6.95295379,2470.7,2470.2,8.09633]
[1728863414788,6.95295379,2470.7,2470.3,0.085657]
[1728863415683,1.48670062,2470.6,2470.3,0.085657]
[1728863415928,5.60460435,2470.7,2470.3,4.133737]
[1728863416721,5.60460435,2470.7,2470.3,0.085657]
[1728863420523,0.8316,2470.8,2470.3,1.04055974]
[1728863420706,7.04711,2470.9,2470.5,4.04773]
[1728863421031,3.0,2470.9,2470.6,0.08571814]
[1728863421230,5.53399062,2470.8,2470.6,0.08571814]
[1728863421653,5.53399062,2470.8,2470.4,4.52434]
[1728863421849,5.53399062,2470.8,2470.7,0.08569776]
[1728863422179,4.04776,2470.5,2470.1,0.84404577]
[1728863422346,0.7969,2470.4,2470.2,0.70080305]
[1728863422534,0.7969,2470.4,2470.1,1.051341]
[1728863422735,0.7969,2470.4,2470.0,5.36904577]
[1728863422931,0.7969,2470.4,2470.1,1.8791833]
[1728863423146,0.7969,2470.4,2470.0,5.36904577]
[1728863423359,0.7969,2470.4,2470.1,1.87920284]
[1728863423550,0.7969,2470.4,2470.0,5.36904577]
[1728863423865,0.7969,2470.4,2470.1,0.82776546]
[1728863424056,0.7969,2470.4,2470.0,4.525]
[1728863424260,6.33153062,2470.4,2470.1,0.82777252]
[1728863424448,6.33153062,2470.4,2470.0,4.04857]
[1728863424667,6.33154062,2470.4,2470.0,4.04857]
[1728863425089,4.04809,2470.3,2469.8,5.09567432]
[1728863425288,6.97519968,2470.2,2469.9,1.87948664]
[1728863425491,6.97519968,2470.2,2469.7,4.89310577]
[1728863425802,6.97519968,2470.2,2469.8,1.87971171]
[1728863426013,5.53516062,2470.1,2469.6,5.09605432]
[1728863426212,1.48670062,2470.1,2469.7,5.92888795]
[1728863426360,1.48670062,2470.1,2469.8,1.87984795]
[1728863426557,1.48670062,2470.1,2469.7,4.04904]
[1728863426798,1.48670062,2470.1,2469.8,0.82792123]
[1728863427005,1.48670062,2470.1,2469.7,4.46242742]
[1728863427305,6.34203062,2470.2,2469.8,0.827934]
[1728863427455,6.34203062,2470.2,2469.7,4.46242742]
[1728863427656,10.39037062,2470.2,2469.8,0.82787398]
[1728863427857,10.39037062,2470.2,2469.7,4.46242742]
[1728863428107,6.34203062,2470.2,2469.8,0.82790003]
[1728863428281,6.34203062,2470.2,2469.7,4.46242742]
[1728863428599,6.34203062,2470.2,2469.8,0.82794171]
[1728863428767,6.34203062,2470.2,2469.7,4.46242742]
[1728863429113,6.34203062,2470.2,2469.8,0.70102553]
[1728863429289,6.34203062,2470.2,2469.8,4.04889]
[1728863429701,1.48670062,2470.1,2469.7,0.41338742]
[1728863430004,1.48670062,2470.1,2469.8,0.70099932]
[1728863430209,2.29370062,2470.2,2469.8,4.13191289]
[1728863431705,2.29370062,2470.2,2469.8,4.16998415]
[1728863432817,2.29370062,2470.2,2469.8,0.12108415]
[1728863432818,1.48670062,2470.1,2469.8,0.12108415]
[1728863432970,1.48670062,2470.1,2469.8,4.04887]
[1728863433172,5.53544062,2469.9,2469.5,0.84404577]
[1728863433372,1.48670062,2469.8,2469.4,5.10116567]
[1728863433609,1.48670062,2469.8,2469.4,4.04949]
[1728863434301,1.48670062,2469.6,2469.3,1.0515567]
[1728863434519,1.48670062,2469.6,2469.2,4.04987]
[1728863434814,1.48670062,2469.6,2469.2,4.1766984]
[1728863435029,1.48670062,2469.6,2469.2,4.04987]
[1728863435321,6.34635062,2469.7,2469.2,9.24053836]
[1728863435477,6.34635062,2469.7,2469.2,9.15954923]
[1728863436084,6.34635062,2469.7,2469.2,5.10967923]
[1728863436284,6.34635062,2469.7,2469.2,9.24047836]
[1728863436611,6.34635062,2469.7,2469.2,9.15948923]
[1728863436834,2.29720062,2469.7,2469.3,4.04962]
[1728863437026,8.09775,2469.9,2469.4,0.4765]
[1728863437027,4.04885,2469.9,2469.4,0.4765]
[1728863437175,4.04885,2469.9,2469.5,4.04938]
[1728863437380,5.53555062,2469.9,2469.5,4.04938]
[1728863440582,5.25100062,2470.0,2469.5,4.04928]
[1728863440925,9.29965062,2470.0,2469.5,8.80833326]
[1728863441127,9.37012218,2470.0,2469.5,4.75901326]
[1728863441276,9.37012218,2470.0,2469.6,4.04922]
[1728863441711,9.37012218,2470.0,2469.5,4.75901326]
[1728863441891,9.37012218,2470.0,2469.6,4.04921]
[1728863442387,9.37012218,2470.0,2469.5,4.04937]
[1728863442591,4.04874,2469.9,2469.5,4.04937]
[1728863443389,4.04874,2469.9,2469.4,4.5259]
[1728863443596,4.04874,2469.9,2469.4,8.65634212]
[1728863443902,4.04874,2469.9,2469.4,8.57536]
[1728863444105,3.7643,2470.0,2469.6,4.04922]
[1728863444524,5.25100062,2470.0,2469.6,4.04922]
[1728863444692,9.29965062,2470.0,2469.6,4.04922]
[1728863444893,9.29965062,2470.0,2469.7,0.11787683]
[1728863445321,4.04875,2469.9,2469.7,0.11787683]
[1728863445724,4.04875,2469.9,2469.4,9.70274296]
[1728863445924,4.04875,2469.9,2469.8,0.11787683]
[1728863446097,9.29959062,2470.0,2469.5,4.04933]
[1728863446297,9.29959062,2470.0,2469.8,0.11787683]
[1728863446538,9.29959062,2470.0,2469.6,4.04922]
[1728863446841,9.29959062,2470.0,2469.7,4.04907]
[1728863446842,0.7643,2470.0,2469.7,4.04907]
[1728863447071,4.04843,2470.1,2469.7,5.61004392]
[1728863447199,4.04843,2470.1,2469.7,4.64344683]
[1728863447828,3.99843,2470.1,2469.7,4.64344683]
[1728863448030,4.04858,2470.0,2469.7,0.59437683]
[1728863448941,3.99843,2470.1,2469.7,4.64343683]
[1728863449326,3.99843,2470.1,2469.7,0.59437683]
[1728863449536,5.48513062,2470.1,2469.7,5.25643757]
[1728863449844,3.99843,2470.1,2469.7,5.25643757]
[1728863450551,8.04695,2470.1,2469.7,1.20740757]
[1728863451198,9.53365062,2470.1,2469.7,1.20740757]
[1728863451432,9.53367062,2470.1,2469.7,1.20740757]
[1728863453541,5.48513062,2470.1,2469.7,1.20740757]
[1728863454284,9.53367062,2470.1,2469.7,1.20740757]
[1728863454445,4.04858,2470.0,2469.7,0.59437683]
[1728863454645,5.53528062,2470.0,2469.7,0.59437683]
[1728863455502,0.7594,2469.9,2469.7,0.11787683]
[1728863456000,0.7594,2469.9,2469.8,0.11799863]
[1728863456172,2.24610062,2469.9,2469.5,4.52588]
[1728863456370,0.7594,2469.9,2469.6,1.08064061]
[1728863457083,6.29487062,2469.9,2469.6,0.11799863]
[1728863457458,4.04893,2469.8,2469.6,0.11799863]
[1728863457664,4.04893,2469.8,2469.4,5.22769237]
[1728863458163,4.04893,2469.8,2469.5,0.11799863]
[1728863458599,2.24610062,2469.9,2469.5,0.11799863]
[1728863458774,6.29486062,2469.9,2469.5,0.11799863]
[1728863458976,6.29486062,2469.9,2469.5,4.16737863]
[1728863459185,4.80816,2469.9,2469.5,5.33932724]
[1728863461010,1.48670062,2469.7,2469.5,0.11799863]
[1728863461311,4.04893,2469.8,2469.5,0.11799863]
[1728863461678,1.48670062,2470.0,2469.6,4.04916]
[1728863461879,4.59859,2470.0,2469.6,4.52566]
[1728863462078,4.59859,2470.0,2469.7,0.11799187]
[1728863462411,4.04859,2470.0,2469.7,0.11799187]
[1728863462886,6.36644062,2470.1,2469.7,0.11799187]
[1728863463215,6.36644062,2470.1,2469.7,4.16704187]
[1728863463706,6.36644062,2470.1,2469.7,4.16705187]
[1728863464316,6.36641062,2470.1,2469.7,0.11799187]
[1728863464607,10.41493062,2470.1,2469.7,0.11799187]
[1728863464809,6.43687861,2470.1,2469.7,0.11799187]
[1728863465021,6.43687861,2470.1,2469.7,4.16704187]
[1728863465715,6.43687861,2470.1,2469.7,0.11799187]
[1728863465922,10.48540861,2470.1,2469.7,0.11799187]
[1728863466087,6.43687861,2470.1,2469.7,0.11799187]
[1728863466287,4.0486,2470.0,2469.7,0.11799187]
[1728863466609,5.53546062,2469.9,2469.7,0.11799187]
[1728863466811,2.26780062,2469.8,2469.5,0.12681813]
[1728863466976,2.26780062,2469.8,2469.6,0.11799187]
[1728863467175,2.26780062,2469.8,2469.4,4.04954]
[1728863467406,2.26780062,2469.8,2469.5,0.9466928]
[1728863467609,2.26780062,2469.8,2469.5,0.11799187]
[1728863469523,0.7811,2469.8,2469.5,4.16732187]
[1728863469819,0.7811,2469.8,2469.5,1.34142725]
[1728863470019,0.7811,2469.8,2469.5,0.11799187]
[1728863470239,0.7811,2469.8,2469.6,0.12681972]
[1728863470441,0.7811,2469.8,2469.5,4.04938]
[1728863470593,0.7811,2469.8,2469.6,0.94739536]
[1728863470798,0.7811,2469.8,2469.6,0.11799187]
[1728863471052,0.7811,2469.8,2469.4,4.89353577]
[1728863471217,0.7811,2469.8,2469.5,2.00128559]
[1728863471400,0.7811,2469.8,2469.6,0.82940926]
[1728863471755,2.26780062,2469.8,2469.7,0.1179851]
[1728863472043,0.7811,2469.8,2469.4,4.89352577]
[1728863472201,0.7811,2469.8,2469.5,2.00147159]
[1728863472539,0.7811,2469.8,2469.6,0.82948636]
[1728863472742,4.83001,2469.8,2469.5,0.1179851]
[1728863473047,5.53585062,2469.7,2469.6,0.1179851]
[1728863473342,5.53585062,2469.7,2469.3,0.84404577]
[1728863473527,5.53585062,2469.7,2469.6,0.1179851]
[1728863473716,5.53585062,2469.7,2469.4,0.12682498]
[1728863473717,5.53585062,2469.7,2469.3,0.84404577]
[1728863473943,5.53585062,2469.7,2469.6,0.1179851]
[1728863474131,5.53585062,2469.7,2469.3,0.84404577]
[1728863474316,5.53585062,2469.7,2469.6,0.1179851]
[1728863474515,6.57243768,2469.7,2469.3,0.84404577]
[1728863474702,5.53585062,2469.7,2469.6,0.1179851]
[1728863474903,5.53585062,2469.7,2469.3,0.84404577]
[1728863475098,5.53585062,2469.7,2469.6,0.1179851]
[1728863475348,5.53585062,2469.7,2469.3,0.84404577]
[1728863475548,5.53585062,2469.7,2469.6,0.1179851]
[1728863476049,6.57243768,2469.7,2469.3,0.84404577]
[1728863476218,5.53585062,2469.7,2469.4,2.00202963]
[1728863476438,5.53585062,2469.7,2469.5,0.82971332]
[1728863476602,5.53585062,2469.7,2469.3,0.84404577]
[1728863476603,1.48670062,2469.6,2469.3,0.84404577]
[1728863476807,1.48670062,2469.6,2469.4,1.88410099]
[1728863477004,1.48670062,2469.6,2469.5,0.82973581]
[1728863477230,1.48670062,2469.6,2469.5,0.12682532]
[1728863477500,1.48670062,2469.6,2469.5,0.1179851]
[1728863477932,1.48670062,2469.6,2469.3,0.84404577]
[1728863478141,1.48670062,2469.6,2469.5,0.1179851]
[1728863478326,1.48670062,2469.6,2469.3,0.84404577]
[1728863478650,1.48670062,2469.5,2469.4,1.88409763]
[1728863478838,6.34023062,2469.6,2469.4,0.94772224]
[1728863479021,1.48670062,2469.5,2469.4,0.1179851]
[1728863479223,4.85353,2469.6,2469.4,0.12683524]
[1728863479224,6.34023062,2469.6,2469.4,0.12683524]
[1728863479563,6.34023062,2469.6,2469.5,0.11424018]
[1728863480058,0.8198,2469.8,2469.5,2.30384027]
[1728863480210,9.56784952,2470.2,2469.7,4.04891]
[1728863480211,7.44,2470.2,2469.7,4.04891]
[1728863480552,6.35459062,2470.3,2469.8,4.87824802]
[1728863480851,6.35459062,2470.3,2469.8,4.16306018]
[1728863481498,1.48670062,2470.2,2469.8,4.16306018]
[1728863481608,5.53496062,2470.2,2469.8,0.11424018]
[1728863481809,5.53496062,2470.2,2469.7,4.04891]
[1728863481810,5.53496062,2470.2,2469.7,8.09786]
[1728863482109,5.53496062,2470.2,2469.8,4.99243746]
[1728863482422,5.53496062,2470.2,2469.8,4.16307018]
[1728863484867,5.53496062,2470.2,2469.8,0.11424018]
[1728863485163,5.53496062,2470.2,2469.7,8.0979]
[1728863485380,1.48670062,2470.1,2469.9,0.11424018]
[1728863485583,1.48670062,2470.1,2469.7,8.0979]
[1728863485873,1.48670062,2470.1,2469.8,0.12681073]
[1728863486064,5.53496062,2470.2,2469.9,0.11424018]
[1728863486270,5.53496062,2470.2,2469.7,8.0979]
[1728863486579,5.53496062,2470.2,2469.8,0.94309802]
[1728863486776,1.48670062,2470.1,2469.8,0.11424018]
[1728863486942,5.53496062,2470.2,2469.8,0.11424018]
[1728863487281,5.53496062,2470.2,2469.9,0.11424018]
[1728863487432,5.53496062,2470.2,2469.7,8.0979]
[1728863487636,5.53496062,2470.2,2469.8,0.24105131]
[1728863487865,5.53496062,2470.2,2469.8,0.11424018]
[1728863488065,5.53496062,2470.2,2469.7,8.0979]
[1728863488253,5.53496062,2470.2,2469.8,0.94309587]
[1728863488447,5.53496062,2470.2,2469.8,0.11424018]
[1728863488649,5.53496062,2470.2,2469.7,8.0979]
[1728863488851,5.53496062,2470.2,2469.8,0.94311045]
[1728863489047,1.48670062,2470.2,2469.8,0.11424018]
[1728863489297,0.07046343,2470.3,2470.0,1.48670062]
[1728863489591,1.48670062,2470.5,2470.2,0.4765]
[1728863489890,1.48670062,2470.5,2470.1,1.8812584]
[1728863489891,4.04778,2470.5,2470.1,4.04832]
[1728863490089,4.04778,2470.5,2470.3,0.11375404]
[1728863490397,0.90305487,2470.7,2470.0,1.96320062]
[1728863490545,3.0,2470.9,2470.5,4.5242]
[1728863490881,15.90966029,2471.0,2470.6,0.11368653]
[1728863490882,12.3659655,2471.0,2470.6,0.11368653]
[1728863491038,4.9259655,2471.0,2470.6,4.16125653]
[1728863491244,6.41266612,2471.0,2470.6,4.16125653]